bitfinex-derivatives/quotes_BTCF0:USTF0_20251216
["timestamp","ask_amount","ask_price","bid_price","bid_amount"]
[1765908233331,0.00229312,87218.0,87217.0,0.1547]
[1765908233622,0.00329312,87218.0,87217.0,0.1547]
[1765908233925,0.00429312,87218.0,87217.0,0.1547]
[1765908234323,0.3608,87234.0,87233.0,0.1547]
[1765908234523,0.3608,87243.0,87242.0,0.1547]
[1765908234724,0.0114639,87250.0,87242.0,0.1547]
[1765908234920,0.08013,87248.0,87247.0,0.0114642]
[1765908235116,0.08013,87248.0,87243.0,0.0114646]
[1765908235425,0.08013,87248.0,87247.0,0.07722]
[1765908235620,0.003,87243.0,87239.0,0.0114652]
[1765908236022,0.003,87243.0,87242.0,0.1547]
[1765908236228,0.00229207,87258.0,87252.0,0.0114634]
[1765908236531,0.08242207,87258.0,87248.0,0.011464]
[1765908236833,0.01375487,87258.0,87247.0,0.5155]
[1765908237323,0.01375487,87258.0,87248.0,0.011464]
[1765908237626,0.01375487,87258.0,87247.0,0.3608]
[1765908237627,0.0114633,87255.0,87247.0,0.3608]
[1765908237933,0.00229207,87258.0,87247.0,0.3722641]
[1765908238434,0.00329207,87258.0,87257.0,0.07722]
[1765908238823,0.16417207,87258.0,87251.0,0.0114636]
[1765908239023,0.16417207,87258.0,87257.0,0.07722]
[1765908239024,0.08442207,87258.0,87257.0,0.07722]
[1765908239328,0.00429207,87258.0,87257.0,0.1547]
[1765908239524,0.00529207,87258.0,87257.0,0.1547]
[1765908239724,0.16517207,87258.0,87253.0,0.0114633]
[1765908239929,0.16517207,87258.0,87257.0,0.1547]
[1765908239930,0.00529207,87258.0,87257.0,0.1547]
[1765908240126,0.00629207,87258.0,87257.0,0.1547]
[1765908240326,0.08013,87255.0,87254.0,0.3608]
[1765908240531,0.08013,87255.0,87254.0,0.43802]
[1765908240729,0.15988,87255.0,87254.0,0.3608]
[1765908241230,0.00629207,87258.0,87257.0,0.1661629]
[1765908241938,0.00429207,87258.0,87257.0,0.1661629]
[1765908242133,0.00229207,87258.0,87257.0,0.1661629]
[1765908242433,0.00629207,87258.0,87257.0,0.1547]
[1765908242736,0.15988,87255.0,87254.0,0.3608]
[1765908242934,0.37655497,87258.0,87247.0,0.3608]
[1765908243135,0.00629207,87258.0,87257.0,0.1547]
[1765908243435,0.00629207,87258.0,87257.0,0.1661629]
[1765908243633,0.08642207,87258.0,87257.0,0.1547]
[1765908244035,0.17196477,87258.0,87250.0,0.0114637]
[1765908244230,0.00629207,87258.0,87257.0,0.15818]
[1765908244739,0.00429207,87258.0,87257.0,0.15818]
[1765908244922,0.00529207,87258.0,87257.0,0.15818]
[1765908245121,0.00329207,87258.0,87257.0,0.15818]
[1765908245424,0.00429207,87258.0,87257.0,0.15818]
[1765908245934,0.0557492,87285.0,87276.0,0.0114603]
[1765908246136,0.51556,87287.0,87286.0,0.0114591]
[1765908246340,0.0114553,87315.0,87296.0,0.08132]
[1765908246341,0.3608,87297.0,87296.0,0.08132]
[1765908246522,0.3608,87297.0,87292.0,0.0114583]
[1765908246523,0.08068,87293.0,87292.0,0.0114583]
[1765908246831,0.0114569,87303.0,87297.0,0.08132]
[1765908247031,0.40509,87304.0,87297.0,0.15818]
[1765908247532,0.0114569,87303.0,87297.0,0.15818]
[1765908247739,0.0114575,87299.0,87297.0,0.15818]
[1765908247935,0.3608,87301.0,87297.0,0.15818]
[1765908248135,0.3608,87310.0,87297.0,0.15818]
[1765908248440,0.3608,87310.0,87297.0,0.17608909]
[1765908248636,0.00829102,87298.0,87297.0,0.17708909]
[1765908249141,0.01329102,87298.0,87297.0,0.17808909]
[1765908249436,0.3608,87317.0,87316.0,0.15818]
[1765908249636,0.3608,87317.0,87316.0,0.17608909]
[1765908249935,0.3608,87327.0,87326.0,0.08132]
[1765908250136,0.36308997,87338.0,87331.0,0.0114531]
[1765908250331,0.01374227,87338.0,87333.0,0.3608]
[1765908250634,0.01374227,87338.0,87326.0,0.36097178]
[1765908250635,0.15476,87335.0,87334.0,0.01790909]
[1765908251239,0.00228997,87338.0,87334.0,0.01790909]
[1765908251440,0.15476,87336.0,87335.0,0.01790909]
[1765908252237,0.55476,87336.0,87335.0,0.01790909]
[1765908252436,0.55476,87336.0,87326.0,1.78e-06]
[1765908252437,0.1662137,87327.0,87326.0,1.78e-06]
[1765908252638,0.15476,87302.0,87291.0,0.10248]
[1765908252836,0.3608,87307.0,87291.0,0.10248]
[1765908253038,0.15476,87275.0,87274.0,0.01159446]
[1765908253336,0.0114593,87285.0,87278.0,0.0114601]
[1765908253526,0.08068,87282.0,87281.0,0.0114597]
[1765908256331,0.08085066,87288.0,87287.0,0.0154589]
[1765908256631,0.15493066,87288.0,87287.0,0.0154589]
[1765908257034,0.15493066,87288.0,87287.0,0.0144589]
[1765908257343,0.15493066,87288.0,87287.0,0.0154589]
[1765908257638,0.00017066,87288.0,87287.0,0.0154589]
[1765908257840,0.00017066,87288.0,87287.0,0.1706389]
[1765908258040,0.3608,87300.0,87299.0,0.0114574]
[1765908258741,0.3608,87317.0,87316.0,0.1696351]
[1765908258947,0.3608,87325.0,87324.0,0.0114541]
[1765908259138,0.08068,87328.0,87327.0,0.0114536]
[1765908259647,0.51556,87331.0,87330.0,0.0114533]
[1765908260338,0.51556,87331.0,87319.0,0.0114546]
[1765908260339,0.15476,87320.0,87319.0,0.0114546]
[1765908260540,0.08068,87316.0,87315.0,0.0114552]
[1765908260841,0.15476,87313.0,87312.0,0.0114556]
[1765908261046,0.15476,87309.0,87305.0,0.0114566]
[1765908261230,0.15476,87309.0,87308.0,0.01162798]
[1765908261436,0.15476,87309.0,87308.0,0.37242798]
[1765908261834,0.15476,87309.0,87308.0,0.00017178]
[1765908262036,0.15476,87309.0,87308.0,0.01162798]
[1765908262342,0.51556,87309.0,87308.0,0.00017178]
[1765908262642,0.3608,87317.0,87308.0,0.00317178]
[1765908262843,0.08068,87315.0,87314.0,0.0114553]
[1765908263042,0.15476,87315.0,87314.0,0.0114553]
[1765908263747,0.08068,87315.0,87314.0,0.0114553]
[1765908263932,0.08068,87315.0,87311.0,0.0114557]
[1765908264139,0.15476,87314.0,87313.0,0.0114554]
[1765908264338,0.15476,87314.0,87313.0,0.02936239]
[1765908265140,0.08068,87321.0,87320.0,0.0114546]
[1765908265341,0.08068,87321.0,87320.0,0.01790699]
[1765908265342,0.18118988,87321.0,87320.0,0.01790699]
[1765908266149,0.18118976,87321.0,87320.0,0.01790699]
[1765908266851,0.02642976,87321.0,87320.0,0.17608699]
[1765908267333,0.001,87321.0,87320.0,0.17708699]
[1765908267944,0.001,87321.0,87320.0,0.01890699]
[1765908267945,0.15576,87321.0,87320.0,0.01890699]
[1765908268149,0.18221774,87321.0,87320.0,0.03036159]
[1765908268357,0.18221774,87321.0,87320.0,0.01890699]
[1765908268849,0.54301774,87321.0,87320.0,0.01890699]
[1765908269445,0.15476,87309.0,87308.0,0.00017178]
[1765908269648,0.527016,87309.0,87308.0,0.00017178]
[1765908269847,0.55347536,87309.0,87308.0,0.00017178]
[1765908270548,0.18121936,87309.0,87308.0,0.00017178]
[1765908270754,0.18121936,87309.0,87308.0,0.00117178]
[1765908270953,0.18121936,87309.0,87308.0,0.00317178]
[1765908271144,0.15476,87309.0,87308.0,0.00317178]
[1765908271449,0.18124422,87309.0,87308.0,0.00117178]
[1765908271839,0.15476,87298.0,87297.0,0.0114575]
[1765908272249,0.18124751,87298.0,87297.0,0.0114575]
[1765908272954,0.00017178,87306.0,87305.0,0.1696366]
[1765908273252,0.1662149,87318.0,87317.0,0.011455]
[1765908273457,0.19272093,87318.0,87317.0,0.011455]
[1765908273844,0.15292,87312.0,87305.0,0.3608]
[1765908274056,0.15292,87306.0,87305.0,0.3608]
[1765908274245,0.17942603,87306.0,87305.0,0.3742566]
[1765908274446,0.15628178,87326.0,87325.0,0.0114539]
[1765908274649,0.3608,87351.0,87337.0,0.1637424]
[1765908274950,0.0114496,87358.0,87337.0,0.1637424]
[1765908275152,0.04667,87360.0,87337.0,0.1637424]
[1765908275360,0.0114491,87363.0,87338.0,0.0114522]
[1765908275650,0.15611,87361.0,87360.0,0.0114493]
[1765908276155,0.15611,87361.0,87360.0,0.3722493]
[1765908276448,0.0114476,87373.0,87360.0,0.3722493]
[1765908276656,0.15611,87369.0,87368.0,0.3608]
[1765908277451,0.15611,87361.0,87360.0,0.36097178]
[1765908278647,0.009,87369.0,87360.0,0.56107178]
[1765908278847,0.004,87361.0,87360.0,0.56107178]
[1765908279045,0.08102,87361.0,87360.0,0.43784178]
[1765908279441,0.16011,87361.0,87360.0,0.36097178]
[1765908279647,0.004,87361.0,87360.0,0.51326178]
[1765908279852,0.007,87361.0,87360.0,0.51326178]
[1765908280455,0.002,87361.0,87360.0,0.51326178]
[1765908281352,0.005,87361.0,87360.0,0.52471118]
[1765908281545,0.004,87361.0,87360.0,0.57252118]
[1765908281750,0.3608,87397.0,87377.0,0.1637371]
[1765908281948,0.3608,87405.0,87377.0,0.1637371]
[1765908281949,0.0114448,87395.0,87377.0,0.8853371]
[1765908282249,0.0114448,87396.0,87377.0,0.8853371]
[1765908282954,0.0114442,87400.0,87377.0,0.8853371]
[1765908283160,0.15611,87395.0,87390.0,0.0114453]
[1765908283348,0.15611,87395.0,87394.0,0.3608]
[1765908283544,0.15611,87407.0,87406.0,0.0114432]
[1765908283753,0.011442,87417.0,87406.0,0.1637332]
[1765908284059,0.15611,87413.0,87412.0,0.3608]
[1765908284457,0.15611,87413.0,87412.0,0.43767]
[1765908284656,0.00228787,87418.0,87417.0,0.07687]
[1765908284958,0.00228787,87418.0,87417.0,0.15229]
[1765908285553,0.00228787,87418.0,87417.0,0.51309]
[1765908285748,0.00228787,87418.0,87417.0,0.15229]
[1765908286253,0.00228787,87418.0,87417.0,0.87389]
[1765908286558,0.15611,87413.0,87412.0,0.002]
[1765908286757,0.15611,87413.0,87387.0,0.0114457]
[1765908286962,0.01372967,87418.0,87412.0,0.15229]
[1765908287151,0.00099999,87450.0,87417.0,0.15229]
[1765908287350,0.00099999,87450.0,87425.0,0.00017156]
[1765908287351,0.1675496,87435.0,87425.0,0.00017156]
[1765908287556,0.07702,87426.0,87425.0,0.00017156]
[1765908287750,0.15611,87426.0,87425.0,0.00017156]
[1765908287954,0.04619,87444.0,87425.0,0.00017156]
[1765908288150,0.02573849,87443.0,87425.0,0.00017156]
[1765908288356,0.1675495,87435.0,87434.0,0.3608]
[1765908289065,0.15611,87435.0,87434.0,0.3608]
[1765908289654,0.07702,87435.0,87434.0,0.43767]
[1765908290264,0.15611,87435.0,87434.0,0.3608]
[1765908292564,0.15611,87435.0,87425.0,0.00017156]
[1765908292565,0.15611,87426.0,87425.0,0.00017156]
[1765908292865,0.15611,87426.0,87425.0,0.07704156]
[1765908293760,0.15611,87426.0,87425.0,0.00117156]
[1765908294065,0.07702,87432.0,87431.0,0.1637301]
[1765908294259,0.07702,87432.0,87431.0,0.5245301]
[1765908294456,0.15611,87442.0,87441.0,0.0883087]
[1765908294661,0.15611,87442.0,87441.0,0.4491087]
[1765908294861,0.37276683,87458.0,87441.0,0.3722387]
[1765908295066,0.52887683,87458.0,87457.0,0.0114367]
[1765908295266,0.15839683,87458.0,87457.0,0.0114367]
[1765908295452,0.15839683,87458.0,87453.0,0.3608]
[1765908295657,0.1675476,87450.0,87449.0,0.00017156]
[1765908296465,0.1675476,87450.0,87449.0,0.07704156]
[1765908296654,0.1675476,87450.0,87449.0,0.00017156]
[1765908296859,0.1685476,87450.0,87449.0,0.00017156]
[1765908297060,0.1695476,87450.0,87449.0,0.00017156]
[1765908297260,0.5293476,87450.0,87449.0,0.00017156]
[1765908297667,0.5293476,87450.0,87441.0,0.3608]
[1765908297668,0.1675486,87442.0,87441.0,0.3608]
[1765908297969,0.1675495,87435.0,87434.0,0.3608]
[1765908298967,0.1675506,87427.0,87426.0,0.00017156]
[1765908299160,0.04619,87438.0,87426.0,0.00017156]
[1765908299357,0.0884599,87433.0,87432.0,0.07687]
[1765908300160,0.0114401,87431.0,87428.0,0.0114404]
[1765908300359,0.1675506,87427.0,87426.0,0.00017156]
[1765908300566,0.07719082,87443.0,87442.0,0.1637286]
[1765908300770,0.07719082,87443.0,87442.0,0.5245286]
[1765908301079,0.00017082,87443.0,87442.0,0.5245286]
[1765908301963,0.15628082,87443.0,87442.0,0.5245286]
[1765908302165,0.15628082,87443.0,87442.0,0.51309]
[1765908302365,0.15628082,87443.0,87442.0,0.3608]
[1765908302566,0.15628082,87443.0,87442.0,0.3618]
[1765908302873,0.15628082,87443.0,87442.0,0.51509]
[1765908302874,0.00017082,87443.0,87442.0,0.51509]
[1765908303262,0.00017082,87443.0,87442.0,0.51409]
[1765908304064,0.00017082,87443.0,87442.0,0.51309]
[1765908304264,0.00017082,87443.0,87442.0,0.51409]
[1765908304459,0.18980932,87443.0,87442.0,0.3618]
[1765908304865,0.00017082,87443.0,87442.0,0.54449]
[1765908305462,0.00017082,87443.0,87442.0,0.3618]
[1765908305463,0.17837082,87443.0,87442.0,0.3618]
[1765908305671,0.1896406,87427.0,87413.0,0.0114424]
[1765908305859,0.1896406,87427.0,87400.0,0.16909195]
[1765908305860,0.0114434,87406.0,87400.0,0.15764785]
[1765908306065,0.0114434,87406.0,87402.0,0.0114439]
[1765908306370,0.189644,87401.0,87400.0,0.00013698]
[1765908306576,0.550444,87401.0,87400.0,0.00013698]
[1765908306875,0.1782,87401.0,87400.0,0.00013698]
[1765908307059,0.1782,87401.0,87400.0,0.00213698]
[1765908307870,0.539,87401.0,87400.0,0.00213698]
[1765908308678,0.539,87401.0,87400.0,0.00013698]
[1765908308877,0.00017156,87409.0,87408.0,0.1941331]
[1765908309175,0.00017156,87409.0,87404.0,0.0114435]
[1765908309375,0.08971,87408.0,87407.0,0.0114432]
[1765908309672,0.00017156,87409.0,87408.0,0.18269]
[1765908309973,0.00017156,87409.0,87408.0,0.54349]
[1765908311269,0.17837156,87409.0,87405.0,0.0114435]
[1765908311460,0.08988156,87409.0,87408.0,0.1051631]
[1765908311860,0.08866156,87409.0,87408.0,0.001]
[1765908312074,0.00017156,87409.0,87408.0,0.1961331]
[1765908312464,0.00017156,87409.0,87408.0,0.1951331]
[1765908312666,0.00017156,87409.0,87408.0,0.5569331]
[1765908314273,0.17837156,87409.0,87408.0,0.4679631]
[1765908314469,0.08988156,87409.0,87408.0,0.5569331]
[1765908315070,0.00017156,87409.0,87408.0,0.5569331]
[1765908316668,0.00228787,87418.0,87417.0,0.1941319]
[1765908316873,0.00228787,87418.0,87417.0,0.5549319]
[1765908317369,0.00228787,87418.0,87417.0,0.54349]
[1765908317674,0.00228787,87418.0,87412.0,0.05668]
[1765908317675,0.0114398,87434.0,87433.0,0.18269]
[1765908317975,0.02523035,87434.0,87433.0,0.18269]
[1765908318879,0.02623035,87434.0,87433.0,0.18269]
[1765908319076,0.0114406,87427.0,87426.0,0.54349]
[1765908319279,0.1782,87426.0,87425.0,0.00017156]
[1765908319576,0.20344343,87426.0,87425.0,0.00017156]
[1765908319778,0.189642,87416.0,87405.0,0.3608]
[1765908320075,0.02523978,87415.0,87414.0,0.09372]
[1765908320270,0.02523978,87415.0,87413.0,0.3722423]
[1765908320271,0.0114423,87414.0,87413.0,0.54349]
[1765908320581,0.1782,87413.0,87412.0,0.0114425]
[1765908320779,0.0114419,87417.0,87414.0,0.0114423]
[1765908320966,0.0114419,87417.0,87415.0,0.09372]
[1765908321575,0.0114419,87417.0,87416.0,0.011442]
[1765908321775,0.0114419,87417.0,87416.0,0.105162]
[1765908321978,0.03667628,87417.0,87416.0,0.105162]
[1765908322370,0.02523438,87417.0,87416.0,0.105162]
[1765908322688,0.00017156,87421.0,87420.0,0.1941315]
[1765908323274,0.0114373,87453.0,87450.0,0.1941276]
[1765908323594,0.00228683,87458.0,87457.0,0.0114367]
[1765908323774,0.00228683,87458.0,87449.0,0.18269]
[1765908323973,0.3608,87455.0,87452.0,0.0114372]
[1765908324175,0.00228683,87458.0,87457.0,0.0114367]
[1765908324569,0.08971,87456.0,87455.0,0.0114369]
[1765908324878,0.21486876,87456.0,87447.0,0.3608]
[1765908325070,0.011437,87454.0,87447.0,0.3608]
[1765908325270,0.0114376,87450.0,87446.0,0.011438]
[1765908325478,0.02522983,87449.0,87446.0,0.011438]
[1765908325669,0.02522983,87449.0,87445.0,0.00017156]
[1765908325670,0.1782,87446.0,87445.0,0.00017156]
[1765908325977,0.20342983,87446.0,87445.0,0.00017156]
[1765908326286,0.00228683,87458.0,87457.0,0.1941267]
[1765908326477,0.02752246,87458.0,87457.0,0.5549267]
[1765908326875,0.02752246,87458.0,87457.0,2.0549267]
[1765908327382,0.00228683,87458.0,87457.0,2.0549267]
[1765908327579,0.00228683,87458.0,87457.0,2.04349]
[1765908327784,0.02751806,87458.0,87457.0,1.68269]
[1765908328383,0.00228683,87458.0,87457.0,1.68269]
[1765908328587,0.02751214,87458.0,87457.0,1.68269]
[1765908328975,0.20571214,87458.0,87457.0,1.5]
[1765908329277,0.08971,87455.0,87454.0,0.011437]
[1765908329468,0.00228683,87458.0,87445.0,0.00017156]
[1765908329670,0.0252268,87457.0,87449.0,0.0114377]
[1765908329871,0.0114374,87452.0,87450.0,1.5]
[1765908330074,0.1782,87451.0,87450.0,1.5]
[1765908330272,0.20342552,87451.0,87445.0,0.00017156]
[1765908330483,0.1782,87451.0,87445.0,0.00017156]
[1765908330676,0.00228683,87458.0,87445.0,0.00017156]
[1765908330677,0.0114379,87448.0,87446.0,0.0114381]
[1765908330872,0.00228683,87458.0,87447.0,0.09372]
[1765908331080,0.02522585,87457.0,87445.0,1.51260976]
[1765908331382,0.02522585,87456.0,87445.0,1.51260976]
[1765908331584,0.0114381,87447.0,87446.0,0.18269]
[1765908331882,0.1782,87454.0,87453.0,0.011437]
[1765908332082,0.20342498,87454.0,87453.0,0.011437]
[1765908332378,0.08971,87446.0,87445.0,0.00017156]
[1765908332782,0.00228683,87458.0,87457.0,0.1941267]
[1765908333083,0.00228683,87458.0,87457.0,0.5549267]
[1765908334290,0.0114337,87480.0,87461.0,0.2255261]
[1765908334489,0.0114335,87482.0,87461.0,0.5863261]
[1765908334680,0.3608,87481.0,87461.0,0.5863261]
[1765908335589,0.00117082,87462.0,87461.0,0.5863261]
[1765908335790,0.00217082,87462.0,87461.0,0.5863261]
[1765908337090,0.00217082,87462.0,87461.0,0.21409]
[1765908338595,0.10801082,87462.0,87461.0,0.21409]
[1765908338791,0.21399082,87462.0,87461.0,0.1206261]
[1765908338992,0.21399082,87462.0,87461.0,0.2239861]
[1765908339191,0.00217082,87462.0,87461.0,0.21255]
[1765908340285,0.10801082,87462.0,87461.0,0.21255]
[1765908340589,0.00217082,87462.0,87461.0,0.21255]
[1765908340889,0.21399082,87462.0,87461.0,0.21255]
[1765908341087,0.21182,87458.0,87457.0,0.0114365]
[1765908341286,0.10584,87448.0,87447.0,0.47195]
[1765908341494,0.21182,87446.0,87430.0,0.41748]
[1765908341678,0.10584,87428.0,87427.0,0.0114405]
[1765908341883,0.0114405,87428.0,87424.0,0.1225909]
[1765908342084,0.10584,87426.0,87425.0,0.21451]
[1765908342483,0.2232595,87436.0,87435.0,0.0114395]
[1765908342684,0.21182,87436.0,87435.0,0.1225895]
[1765908342894,0.10584,87436.0,87435.0,0.2259495]
[1765908343291,0.3608,87437.0,87436.0,0.21451]
[1765908343795,0.2242594,87436.0,87435.0,0.1225895]
[1765908343994,0.002,87436.0,87435.0,0.2259495]
[1765908344382,0.001,87436.0,87435.0,0.2259495]
[1765908344782,0.002,87437.0,87436.0,0.21451]
[1765908344983,0.001,87437.0,87436.0,0.21451]
[1765908346499,0.002,87437.0,87436.0,0.21451]
[1765908346792,0.001,87437.0,87436.0,0.21451]
[1765908347193,0.001,87437.0,87436.0,0.57531]
[1765908347397,0.001,87437.0,87436.0,0.21451]
[1765908347802,0.002,87437.0,87436.0,0.21451]
[1765908349493,0.21182,87436.0,87435.0,0.0114395]
[1765908349795,0.10584,87430.0,87429.0,0.57531]
[1765908350193,0.3628,87437.0,87430.0,0.0114402]
[1765908350405,0.3628,87437.0,87429.0,0.3608]
[1765908350594,0.001,87436.0,87429.0,0.3608]
[1765908350895,0.002,87436.0,87435.0,0.0114395]
[1765908351099,0.21382,87436.0,87435.0,0.0114395]
[1765908351887,0.21382,87436.0,87435.0,0.1225895]
[1765908352102,0.21382,87436.0,87435.0,0.11115]
[1765908352302,0.21282,87436.0,87435.0,0.11115]
[1765908352597,0.21282,87436.0,87435.0,0.21451]
[1765908352798,0.21182,87436.0,87435.0,0.21451]
[1765908353100,0.21282,87436.0,87435.0,0.21451]
[1765908353693,0.21182,87428.0,87427.0,0.00017156]
[1765908353890,0.21182,87428.0,87400.0,0.00013698]
[1765908353891,0.2232616,87419.0,87400.0,0.00013698]
[1765908354190,0.223264,87401.0,87400.0,0.21464698]
[1765908354400,0.584064,87401.0,87400.0,0.00013698]
[1765908354700,0.57262,87401.0,87400.0,0.11128698]
[1765908355700,0.57262,87401.0,87400.0,0.21464698]
[1765908356295,0.46764,87401.0,87400.0,0.21464698]
[1765908356899,0.001,87401.0,87400.0,0.21564698]
[1765908357098,0.00017156,87409.0,87408.0,0.21451]
[1765908357398,0.00017156,87409.0,87408.0,0.2870831]
[1765908359394,0.00017156,87409.0,87408.0,0.2890831]
[1765908359795,0.3608,87440.0,87439.0,0.21451]
[1765908359993,0.21182,87435.0,87434.0,0.0114396]
[1765908360197,0.21182,87435.0,87431.0,0.01144]
[1765908360398,0.3608,87440.0,87430.0,0.21451]
[1765908360796,0.3608,87440.0,87426.0,0.00017156]
[1765908360797,0.2232606,87427.0,87426.0,0.00017156]
[1765908361002,0.2232629,87409.0,87408.0,0.006]
[1765908361303,0.10584,87401.0,87400.0,0.01158108]
[1765908361495,0.21182,87401.0,87400.0,0.00013698]
[1765908362209,0.10584,87401.0,87400.0,0.11128698]
[1765908363313,0.21182,87401.0,87400.0,0.00113698]
[1765908363904,0.21182,87401.0,87400.0,0.01258108]
[1765908364104,0.21182,87401.0,87400.0,0.11583108]
[1765908364404,0.21182,87401.0,87400.0,0.00113698]
[1765908364610,0.21182,87401.0,87400.0,0.10438698]
[1765908364802,0.21182,87401.0,87400.0,0.10338698]
[1765908365001,0.001,87401.0,87400.0,0.20905698]
[1765908365503,0.10119,87401.0,87400.0,0.10338698]
[1765908365702,0.10219,87401.0,87400.0,0.10338698]
[1765908365898,0.00017156,87409.0,87408.0,0.2203631]
[1765908366216,0.3608,87429.0,87426.0,0.0114406]
[1765908366217,0.10119,87427.0,87426.0,0.0114406]
[1765908366506,0.011441,87425.0,87412.0,0.06048]
[1765908366709,0.3608,87417.0,87416.0,0.10325]
[1765908366900,0.3608,87417.0,87416.0,0.114692]
[1765908367100,0.3608,87417.0,87416.0,0.220362]
[1765908368806,0.00017156,87425.0,87422.0,0.0114411]
[1765908369006,0.10119,87423.0,87422.0,0.0114411]
[1765908369206,0.10119,87420.0,87419.0,0.0114416]
[1765908369402,0.01161246,87425.0,87416.0,0.001]
[1765908369603,0.0114412,87423.0,87416.0,0.001]
[1765908370005,0.20585156,87425.0,87424.0,0.011441]
[1765908370400,0.10136156,87425.0,87424.0,0.220361]
[1765908370614,0.00017156,87425.0,87424.0,0.220361]
[1765908371504,0.00117156,87425.0,87424.0,0.220361]
[1765908372605,0.3608,87445.0,87422.0,0.3608]
[1765908372606,0.0114384,87444.0,87438.0,0.011439]
[1765908372809,0.0114384,87444.0,87438.0,0.071919]
[1765908373405,0.10119,87439.0,87438.0,0.2694]
[1765908373716,0.20568,87434.0,87433.0,0.0114397]
[1765908373911,0.20568,87434.0,87430.0,0.00017156]
[1765908373912,0.20568,87431.0,87430.0,0.00017156]
[1765908374617,0.3608,87437.0,87436.0,0.20892]
[1765908374915,0.002,87444.0,87443.0,0.10325]
[1765908375119,0.02723064,87444.0,87443.0,0.10325]
[1765908375618,0.23091064,87444.0,87443.0,0.10325]
[1765908375922,0.00017082,87447.0,87446.0,0.2203581]
[1765908377310,0.20568,87444.0,87443.0,0.0114385]
[1765908377517,0.20568,87444.0,87404.0,0.08242314]
[1765908377518,0.20568,87431.0,87425.0,0.06048]
[1765908378023,0.4734284,87444.0,87443.0,0.20892]
[1765908378220,0.10119,87444.0,87443.0,0.20892]
[1765908378417,0.2171182,87446.0,87445.0,0.20892]
[1765908378721,0.2171182,87446.0,87445.0,0.10325]
[1765908379116,0.24235366,87446.0,87445.0,0.10325]
[1765908379316,0.2171182,87446.0,87445.0,0.10325]
[1765908379516,0.2171182,87446.0,87445.0,0.20892]
[1765908380221,0.10119,87442.0,87441.0,0.0114387]
[1765908380526,0.10119,87442.0,87441.0,0.2203587]
[1765908380728,0.20568,87431.0,87430.0,0.00017156]
[1765908380915,0.20568,87406.0,87405.0,0.1146935]
[1765908381220,0.10119,87406.0,87405.0,0.2203635]
[1765908381426,0.10119,87405.0,87404.0,0.0114435]
[1765908381613,0.10119,87405.0,87400.0,0.01158108]
[1765908381614,0.20568,87401.0,87400.0,0.01158108]
[1765908381926,0.10119,87401.0,87400.0,0.22050108]
[1765908382219,0.112634,87401.0,87400.0,0.20905698]
[1765908382725,0.217124,87401.0,87400.0,0.00013698]
[1765908382913,0.24234483,87401.0,87400.0,0.00013698]
[1765908383115,0.217124,87401.0,87400.0,0.00013698]
[1765908383415,0.20568,87393.0,87392.0,0.01161656]
[1765908383608,0.20568,87393.0,87392.0,0.11486656]
[1765908383808,0.10119,87393.0,87392.0,0.22053656]
[1765908384012,0.3608,87405.0,87404.0,0.0114436]
[1765908384210,0.47360456,87409.0,87408.0,0.10325]
[1765908384429,0.60340457,87409.0,87408.0,0.10325]
[1765908384821,0.20568,87408.0,87403.0,0.0114436]
[1765908385028,0.0114432,87407.0,87403.0,0.0114436]
[1765908385329,0.20568,87395.0,87380.0,0.15704522]
[1765908385832,0.577924,87401.0,87400.0,0.0114441]
[1765908386222,0.00026326,87409.0,87408.0,0.2203631]
[1765908386426,0.3608,87432.0,87408.0,0.2203631]
[1765908386427,0.3608,87432.0,87431.0,0.1146901]
[1765908386625,0.38602129,87432.0,87431.0,0.1146901]
[1765908386829,0.59170129,87432.0,87431.0,0.0114401]
[1765908387317,0.59174657,87432.0,87431.0,0.0114401]
[1765908387521,0.59174657,87432.0,87423.0,0.00017156]
[1765908387522,0.20568,87424.0,87423.0,0.00017156]
[1765908388218,0.56648,87424.0,87423.0,0.00017156]
[1765908388624,0.20568,87409.0,87408.0,0.003]
[1765908388820,0.20572528,87409.0,87408.0,0.003]
[1765908389025,0.20568,87401.0,87400.0,0.0114441]
[1765908389230,0.3608,87403.0,87402.0,0.10325]
[1765908389427,0.20568,87407.0,87406.0,0.0114433]
[1765908389630,4.528e-05,87409.0,87408.0,0.20892]
[1765908390630,0.00017156,87415.0,87414.0,0.2203623]
[1765908390821,0.00017156,87415.0,87414.0,0.5811623]
[1765908391142,0.0114392,87438.0,87430.0,0.1146902]
[1765908391433,0.0114395,87436.0,87430.0,0.1146902]
[1765908391621,0.46199,87431.0,87430.0,0.10325]
[1765908392220,0.3608,87431.0,87430.0,0.20892]
[1765908392421,0.37240992,87439.0,87435.0,0.0114395]
[1765908392626,0.0114395,87435.0,87432.0,0.0114399]
[1765908392828,0.00017082,87439.0,87438.0,0.2808391]
[1765908393633,0.00017082,87439.0,87438.0,0.6416391]
[1765908394720,0.00117082,87439.0,87438.0,0.6416391]
[1765908395228,0.00217082,87439.0,87438.0,0.6416391]
[1765908395431,0.09815,87450.0,87445.0,0.0114381]
[1765908395627,0.02521738,87449.0,87445.0,0.0114381]
[1765908395823,0.09117,87446.0,87445.0,0.0114381]
[1765908396020,0.18725,87443.0,87442.0,0.0114386]
[1765908396837,0.18725,87443.0,87442.0,0.1047386]
[1765908397224,0.002,87449.0,87434.0,0.01161106]
[1765908397225,0.198689,87439.0,87434.0,0.01161106]
[1765908397431,0.18725,87435.0,87434.0,0.00017156]
[1765908397632,0.18725,87435.0,87434.0,0.01161126]
[1765908397831,0.18725,87435.0,87434.0,0.10491126]
[1765908398026,0.18725,87435.0,87434.0,0.19670126]
[1765908399434,0.18725,87435.0,87434.0,0.00017156]
[1765908399632,0.18725,87435.0,87434.0,0.09347156]
[1765908399831,0.18725,87435.0,87434.0,0.00017156]
[1765908401431,0.3608,87435.0,87425.0,0.06048]
[1765908401636,0.18725,87417.0,87416.0,0.011442]
[1765908401840,0.18725,87414.0,87413.0,0.3608]
[1765908402233,0.18725,87414.0,87413.0,0.4541]
[1765908402430,0.18725,87414.0,87413.0,0.3608]
[1765908402741,0.18725,87406.0,87405.0,0.01161506]
[1765908402935,0.0114429,87410.0,87407.0,0.0114432]
[1765908403140,0.18725,87408.0,87407.0,0.1047432]
[1765908403341,0.18725,87408.0,87407.0,0.1965332]
[1765908403838,0.3608,87412.0,87411.0,0.18509]
[1765908404237,0.3608,87421.0,87408.0,0.05728]